[Event "POL-chT 2 Liga 2019"]
[Site "Poronin"]
[Date "2019.09.12"]
[Round "6.11"]
[White "Kowalczyk, Pawel"]
[Black "Polok, Rafal"]
[Result "1-0"]
[ECO "B20"]
[WhiteElo "2294"]
[BlackElo "2053"]
[Annotator "NA"]
[PlyCount "97"]
[EventDate "2019.09.07"]
[EventType "team-tourn"]
[EventCountry "POL"]
[SourceTitle "playchess.com"]
[Source "ChessBase"]
[SourceQuality "1"]
[TimeControl "40/5400+30:1800+30"]

1. e4 {[%emt 0:00:00]} c5 {[%emt 0:00:00]} 2. Ne2 {[%emt 0:00:00]} Nc6 {[%emt 0:00:00]} 3. g3 {[%emt 0:00:00]} d5 {[%emt 0:01:00]} 4. Bg2 {[%emt 0:00:00]} dxe4 {[%emt 0:01:21]} 5. Bxe4 {[%emt 0:00:00]} Nf6 {[%emt 0:05:35]} 6. Bg2 {[%emt 0:00:00]} Bf5 {[%emt 0:07:25]} 7. Nbc3 {[%emt 0:07:52]} Qd7 {[%emt 0:04:43]} 8. h3 {[%emt 0:02:39]} h5 {[%emt 0:12:14]} 9. d3 {[%emt 0:00:06]} e5 {[%emt 0:00:06]} 10. Be3 {[%emt 0:03:22]} Nd4 {[%emt 0:06:56]} 11. f4 {[%emt 0:04:32]} Bd6 {[%emt 0:05:30]} 12. Ne4 {[%emt 0:12:04]} Nd5 {[%emt 0:04:13]} 13. Bd2 {[%emt 0:01:35]} Bxe4 {[%emt 0:06:00]} 14. Bxe4 {[%emt 0:02:26]} Nb4 {[%emt 0:08:42]} 15. Nxd4 {[%emt 0:02:54]} exd4 {[%emt 0:00:22]} 16. a3 {[%emt 0:01:27]} Nc6 {[%emt 0:00:33]} 17. Qf3 {[%emt 0:00:17]} O-O-O {[%emt 0:01:23]} 18. Kd1 {[%emt 0:06:43]} Ne7 {[%emt 0:05:37]} 19. Qg2 {[%emt 0:03:48]} Nf5 {[%emt 0:01:02]} 20. Re1 {[%emt 0:00:07]} h4 {[%emt 0:00:42]} 21. g4 {[%emt 0:03:54]} Ng3 {[%emt 0:00:12]} 22. Bf3 {[%emt 0:10:22]} Rhe8 {[%emt 0:06:08]} 23. Rxe8 {[%emt 0:00:03]} Rxe8 {[%emt 0:00:07]} 24. b4 {[%emt 0:00:03]} Qe7 {[%emt 0:03:51]} 25. bxc5 {[%emt 0:01:03]} Bxc5 {[%emt 0:00:06]} 26. Rb1 {[%emt 0:00:12]} b6 {[%emt 0:00:39]} 27. a4 {[%emt 0:01:11]} a5 {[%emt 0:00:39]} 28. Qf2 {[%emt 0:00:05]} Qe6 {[%emt 0:02:05]} 29. Rb3 {[%emt 0:00:46]} Qd7 {[%emt 0:01:48]} 30. Rb5 {[%emt 0:00:34]} Qe6 {[%emt 0:00:35]} 31. c4 {[%emt 0:00:33]} dxc3 {[%emt 0:03:16]} 32. Rxc5+ {[%emt 0:00:06]} bxc5 {[%emt 0:00:02]} 33. Qxc5+ {[%emt 0:00:06]} Kd7 {[%emt 0:00:33]} 34. Qb5+ {[%emt 0:07:51]} Ke7 {[%emt 0:00:55]} 35. Bxc3 {[%emt 0:00:51]} Kf8 {[%emt 0:01:01]} 36. Be5 {[%emt 0:01:36]} Rd8 {[%emt 0:02:34]} 37. Bxg7+ {[%emt 0:01:30]} Kxg7 {[%emt 0:01:53]} 38. Qg5+ {[%emt 0:00:02]} Kh7 {[%emt 0:00:33]} 39. Qxh4+ {[%emt 0:01:07]} Kg7 {[%emt 0:00:07]} 40. Qg5+ {[%emt 0:00:00]} Kh7 {[%emt 0:00:00]} 41. Qxd8 {[%emt 0:00:55]} Qb3+ {[%emt 0:02:33]} 42. Ke1 {[%emt 0:03:50]} Qc3+ {[%emt 0:06:27]} 43. Kf2 {[%emt 0:01:01]} Qd2+ {[%emt 0:03:26]} 44. Kxg3 {[%emt 0:00:06]} Qe1+ {[%emt 0:00:03]} 45. Kg2 {[%emt 0:00:05]} Qd2+ {[%emt 0:00:09]} 46. Kf1 {[%emt 0:00:08]} Qc1+ {[%emt 0:00:55]} 47. Kf2 {[%emt 0:00:12]} Qd2+ {[%emt 0:01:53]} 48. Be2 {[%emt 0:00:06]} Qxf4+ {[%emt 0:00:04]} 49. Kg2 {[%emt 0:00:04]} 1-0

[Event "POL-chT 2 Liga 2019"]
[Site "Poronin"]
[Date "2019.09.12"]
[Round "6.12"]
[White "Trybowska, Barbara"]
[Black "Starosta, Martyna"]
[Result "0-1"]
[ECO "C60"]
[WhiteElo "1689"]
[BlackElo "1814"]
[Annotator "NA"]
[PlyCount "88"]
[EventDate "2019.09.07"]
[EventType "team-tourn"]
[EventCountry "POL"]
[SourceTitle "playchess.com"]
[Source "ChessBase"]
[SourceQuality "1"]
[TimeControl "40/5400+30:1800+30"]

1. e4 {[%emt 0:00:00]} e5 {[%emt 0:00:00]} 2. Nf3 {[%emt 0:00:00]} Nc6 {[%emt 0:00:00]} 3. Bb5 {[%emt 0:00:00]} g6 {[%emt 0:00:00]} 4. c3 {[%emt 0:00:07]} d6 {[%emt 0:00:41]} 5. d4 {[%emt 0:00:29]} Bd7 {[%emt 0:00:21]} 6. O-O {[%emt 0:02:36]} Bg7 {[%emt 0:01:22]} 7. Re1 {[%emt 0:12:27]} a6 {[%emt 0:00:34]} 8. Ba4 {[%emt 0:05:34]} Nge7 {[%emt 0:00:18]} 9. Be3 {[%emt 0:06:52]} O-O {[%emt 0:03:29]} 10. Nbd2 {[%emt 0:07:03]} f5 {[%emt 0:08:54]} 11. exf5 {[%emt 0:04:07]} gxf5 {[%emt 0:01:12]} 12. dxe5 {[%emt 0:06:45]} dxe5 {[%emt 0:05:57]} 13. Bc5 {[%emt 0:07:31]} e4 {[%emt 0:04:30]} 14. Ng5 {[%emt 0:12:53]} Ne5 {[%emt 0:03:17]} 15. Bb3+ {[%emt 0:03:00]} Kh8 {[%emt 0:00:39]} 16. Nc4 {[%emt 0:05:59]} N7g6 {[%emt 0:11:22]} 17. Qh5 {[%emt 0:03:21]} h6 {[%emt 0:01:10]} 18. Nxe5 {[%emt 0:00:57]} Nxe5 {[%emt 0:00:34]} 19. Bxf8 {[%emt 0:00:51]} Qxg5 {[%emt 0:03:09]} 20. Qxg5 {[%emt 0:01:47]} hxg5 {[%emt 0:00:08]} 21. Bxg7+ {[%emt 0:00:04]} Kxg7 {[%emt 0:00:01]} 22. Rad1 {[%emt 0:00:24]} Kf6 {[%emt 0:01:59]} 23. f3 {[%emt 0:03:50]} Bc6 {[%emt 0:03:23]} 24. fxe4 {[%emt 0:01:22]} Bxe4 {[%emt 0:00:53]} 25. Bd5 {[%emt 0:01:04]} Nd3 {[%emt 0:03:25]} 26. Bxe4 {[%emt 0:06:20]} Nxe1 {[%emt 0:00:50]} 27. Rxe1 {[%emt 0:04:44]} Re8 {[%emt 0:00:22]} 28. Kf2 {[%emt 0:00:25]} Rxe4 {[%emt 0:06:24]} 29. Rxe4 {[%emt 0:01:14]} fxe4 {[%emt 0:00:01]} 30. Ke3 {[%emt 0:00:10]} Ke5 {[%emt 0:01:02]} 31. g3 {[%emt 0:02:02]} g4 {[%emt 0:00:15]} 32. a3 {[%emt 0:01:18]} c6 {[%emt 0:02:54]} 33. a4 {[%emt 0:00:36]} b5 {[%emt 0:11:23]} 34. a5 {[%emt 0:00:25]} c5 {[%emt 0:01:35]} 35. b3 {[%emt 0:00:10]} Kd5 {[%emt 0:01:51]} 36. Kd2 {[%emt 0:00:49]} b4 {[%emt 0:00:48]} 37. cxb4 {[%emt 0:00:30]} cxb4 {[%emt 0:00:10]} 38. Ke3 {[%emt 0:00:29]} Ke5 {[%emt 0:00:05]} 39. Ke2 {[%emt 0:00:08]} Kd4 {[%emt 0:00:06]} 40. Kd2 {[%emt 0:00:00]} e3+ {[%emt 0:00:00]} 41. Ke2 {[%emt 0:00:09]} Ke4 {[%emt 0:00:52]} 42. Ke1 {[%emt 0:00:16]} Kd3 {[%emt 0:00:21]} 43. Kd1 {[%emt 0:00:04]} e2+ {[%emt 0:00:23]} 44. Ke1 {[%emt 0:00:04]} Ke3 {[%emt 0:00:06]} 0-1

[Event "POL-chT 2 Liga 2019"]
[Site "Poronin"]
[Date "2019.09.12"]
[Round "6.14"]
[White "Dobrowolski, Piotr"]
[Black "Dudzinski, Piotr"]
[Result "1/2-1/2"]
[ECO "C07"]
[WhiteElo "2415"]
[BlackElo "2355"]
[Annotator "NA"]
[PlyCount "30"]
[EventDate "2019.09.07"]
[EventType "team-tourn"]
[EventCountry "POL"]
[SourceTitle "playchess.com"]
[Source "ChessBase"]
[SourceQuality "1"]
[TimeControl "40/5400+30:1800+30"]

1. e4 {[%emt 0:00:02]} e6 {[%emt 0:00:00]} 2. d4 {[%emt 0:00:11]} d5 {[%emt 0:00:00]} 3. Nd2 {[%emt 0:00:10]} c5 {[%emt 0:00:00]} 4. Ngf3 {[%emt 0:01:12]} cxd4 {[%emt 0:03:22]} 5. exd5 {[%emt 0:01:03]} exd5 {[%emt 0:00:36]} 6. Bb5+ {[%emt 0:01:38]} Bd7 {[%emt 0:01:32]} 7. Bxd7+ {[%emt 0:02:00]} Nxd7 {[%emt 0:01:09]} 8. O-O {[%emt 0:00:45]} Bd6 {[%emt 0:01:43]} 9. Re1+ {[%emt 0:00:27]} Ne7 {[%emt 0:00:58]} 10. Nb3 {[%emt 0:06:37]} O-O {[%emt 0:08:02]} 11. Qxd4 {[%emt 0:01:01]} h6 {[%emt 0:10:08]} 12. Bf4 {[%emt 0:13:06]} Nc6 {[%emt 0:03:39]} 13. Qd2 {[%emt 0:01:10]} Nf6 {[%emt 0:01:31]} 14. Rad1 {[%emt 0:00:08]} Bxf4 {[%emt 0:02:59]} 15. Qxf4 {[%emt 0:00:06]} Qb6 {[%emt 0:01:52]} 1/2-1/2

[Event "POL-chT 2 Liga 2019"]
[Site "Poronin"]
[Date "2019.09.12"]
[Round "6.15"]
[White "Janaszak, Dawid"]
[Black "Piotrowski, Przemyslaw"]
[Result "1/2-1/2"]
[ECO "A37"]
[WhiteElo "2351"]
[BlackElo "2293"]
[Annotator "NA"]
[PlyCount "31"]
[EventDate "2019.09.07"]
[EventType "team-tourn"]
[EventCountry "POL"]
[SourceTitle "playchess.com"]
[Source "ChessBase"]
[SourceQuality "1"]
[TimeControl "40/5400+30:1800+30"]

1. Nf3 {[%emt 0:00:00]} c5 {[%emt 0:01:49]} 2. c4 {[%emt 0:00:34]} Nc6 {[%emt 0:00:10]} 3. Nc3 {[%emt 0:02:57]} g6 {[%emt 0:00:47]} 4. g3 {[%emt 0:00:24]} Bg7 {[%emt 0:00:07]} 5. Bg2 {[%emt 0:00:02]} e6 {[%emt 0:05:16]} 6. O-O {[%emt 0:02:26]} Nge7 {[%emt 0:00:28]} 7. e3 {[%emt 0:04:11]} O-O {[%emt 0:14:34]} 8. d4 {[%emt 0:00:29]} cxd4 {[%emt 0:00:10]} 9. Nxd4 {[%emt 0:00:48]} d5 {[%emt 0:03:19]} 10. cxd5 {[%emt 0:02:40]} Nxd4 {[%emt 0:03:01]} 11. exd4 {[%emt 0:00:08]} Nxd5 {[%emt 0:01:38]} 12. Nxd5 {[%emt 0:06:18]} exd5 {[%emt 0:01:58]} 13. Qb3 {[%emt 0:14:25]} Be6 {[%emt 0:12:35]} 14. Be3 {[%emt 0:03:10]} Qd7 {[%emt 0:01:09]} 15. Rac1 {[%emt 0:01:34]} Rac8 {[%emt 0:10:09]} 16. h4 {[%emt 0:00:17]} 1/2-1/2

[Event "POL-chT 2 Liga 2019"]
[Site "Poronin"]
[Date "2019.09.12"]
[Round "6.16"]
[White "Maciol, Ryszard"]
[Black "Malovanyi, Yulian"]
[Result "0-1"]
[ECO "E81"]
[WhiteElo "2165"]
[BlackElo "2320"]
[Annotator "NA"]
[PlyCount "84"]
[EventDate "2019.09.07"]
[EventType "team-tourn"]
[EventCountry "POL"]
[SourceTitle "playchess.com"]
[Source "ChessBase"]
[SourceQuality "1"]
[TimeControl "40/5400+30:1800+30"]

1. d4 {[%emt 0:00:43]} Nf6 {[%emt 0:00:41]} 2. c4 {[%emt 0:00:13]} g6 {[%emt 0:00:08]} 3. Nc3 {[%emt 0:00:36]} Bg7 {[%emt 0:00:08]} 4. e4 {[%emt 0:00:35]} d6 {[%emt 0:00:06]} 5. f3 {[%emt 0:01:23]} O-O {[%emt 0:00:27]} 6. Nge2 {[%emt 0:00:34]} c5 {[%emt 0:00:32]} 7. d5 {[%emt 0:01:15]} e6 {[%emt 0:05:25]} 8. Ng3 {[%emt 0:02:36]} Re8 {[%emt 0:03:18]} 9. Be2 {[%emt 0:02:45]} exd5 {[%emt 0:02:13]} 10. cxd5 {[%emt 0:00:18]} h5 {[%emt 0:01:40]} 11. Bg5 {[%emt 0:03:03]} Qb6 {[%emt 0:03:04]} 12. Qd2 {[%emt 0:04:22]} Nh7 {[%emt 0:01:46]} 13. Bf4 {[%emt 0:03:33]} Nd7 {[%emt 0:02:10]} 14. Nf1 {[%emt 0:05:02]} Ne5 {[%emt 0:01:49]} 15. Bg3 {[%emt 0:08:37]} f5 {[%emt 0:05:55]} 16. f4 {[%emt 0:11:34]} Nf7 {[%emt 0:03:21]} 17. Ne3 {[%emt 0:02:36]} Bxc3 {[%emt 0:17:55]} 18. Qxc3 {[%emt 0:10:21]} Rxe4 {[%emt 0:01:39]} 19. Bf3 {[%emt 0:02:00]} Re8 {[%emt 0:03:30]} 20. O-O {[%emt 0:00:45]} Qd8 {[%emt 0:02:23]} 21. Rae1 {[%emt 0:06:05]} Bd7 {[%emt 0:01:54]} 22. Nc4 {[%emt 0:03:02]} Qf6 {[%emt 0:04:50]} 23. Qb3 {[%emt 0:03:37]} Rxe1 {[%emt 0:09:24]} 24. Bxe1 {[%emt 0:01:49]} b5 {[%emt 0:03:13]} 25. Na5 {[%emt 0:02:14]} Qd4+ {[%emt 0:03:20]} 26. Kh1 {[%emt 0:02:31]} Re8 {[%emt 0:02:51]} 27. Nc6 {[%emt 0:01:32]} Qxf4 {[%emt 0:01:58]} 28. Qxb5 {[%emt 0:01:29]} Nf6 {[%emt 0:02:48]} 29. Bc3 {[%emt 0:06:49]} Ng4 {[%emt 0:04:22]} 30. g3 {[%emt 0:03:39]} Qe3 {[%emt 0:00:41]} 31. Qb7 {[%emt 0:05:18]} Bc8 {[%emt 0:03:05]} 32. Qb5 {[%emt 0:03:01]} a6 {[%emt 0:03:01]} 33. Qc4 {[%emt 0:00:47]} Ng5 {[%emt 0:05:26]} 34. Bxg4 {[%emt 0:00:43]} hxg4 {[%emt 0:01:04]} 35. Qf4 {[%emt 0:00:52]} Qxf4 {[%emt 0:00:38]} 36. gxf4 {[%emt 0:00:07]} Nf3 {[%emt 0:00:18]} 37. Rf2 {[%emt 0:00:37]} Re4 {[%emt 0:00:42]} 38. b4 {[%emt 0:00:20]} cxb4 {[%emt 0:00:36]} 39. Bxb4 {[%emt 0:00:41]} Bd7 {[%emt 0:00:34]} 40. a3 {[%emt 0:00:00]} Rc4 {[%emt 0:00:00]} 41. Ne7+ {[%emt 0:03:28]} Kf7 {[%emt 0:02:10]} 42. Re2 {[%emt 0:00:13]} Bb5 {[%emt 0:02:10]} 0-1

[Event "POL-chT 2 Liga 2019"]
[Site "Poronin"]
[Date "2019.09.12"]
[Round "6.18"]
[White "Dmochowska, Agnieszka"]
[Black "Czerwinska, Milena"]
[Result "1/2-1/2"]
[ECO "C41"]
[WhiteElo "2110"]
[BlackElo "2006"]
[Annotator "NA"]
[PlyCount "25"]
[EventDate "2019.09.07"]
[EventType "team-tourn"]
[EventCountry "POL"]
[SourceTitle "playchess.com"]
[Source "ChessBase"]
[SourceQuality "1"]
[TimeControl "40/5400+30:1800+30"]

1. e4 {[%emt 0:00:00]} d6 {[%emt 0:00:00]} 2. d4 {[%emt 0:00:06]} Nf6 {[%emt 0:00:00]} 3. Nc3 {[%emt 0:00:15]} e5 {[%emt 0:00:38]} 4. Nf3 {[%emt 0:00:44]} Nbd7 {[%emt 0:00:23]} 5. Rg1 {[%emt 0:00:28]} exd4 {[%emt 0:04:35]} 6. Qxd4 {[%emt 0:06:49]} Nc5 {[%emt 0:03:35]} 7. Be3 {[%emt 0:06:41]} Ne6 {[%emt 0:11:06]} 8. Qd2 {[%emt 0:00:24]} Ng4 {[%emt 0:07:24]} 9. Bd4 {[%emt 0:05:38]} Nxd4 {[%emt 0:04:31]} 10. Qxd4 {[%emt 0:00:39]} Be7 {[%emt 0:07:15]} 11. Nd5 {[%emt 0:02:50]} Bf6 {[%emt 0:04:45]} 12. Nxf6+ {[%emt 0:02:04]} Qxf6 {[%emt 0:07:49]} 13. Qxf6 {[%emt 0:02:55]} 1/2-1/2

[Event "POL-chT 2 Liga 2019"]
[Site "Poronin"]
[Date "2019.09.12"]
[Round "6.19"]
[White "Wandzik, Wojciech"]
[Black "Goluch, Piotr"]
[Result "1/2-1/2"]
[ECO "B18"]
[WhiteElo "2409"]
[BlackElo "2428"]
[Annotator "NA"]
[PlyCount "108"]
[EventDate "2019.09.07"]
[EventType "team-tourn"]
[EventCountry "POL"]
[SourceTitle "playchess.com"]
[Source "ChessBase"]
[SourceQuality "1"]
[TimeControl "40/5400+30:1800+30"]

1. e4 {[%emt 0:00:00]} c6 {[%emt 0:00:00]} 2. d4 {[%emt 0:00:00]} d5 {[%emt 0:00:00]} 3. Nc3 {[%emt 0:00:00]} dxe4 {[%emt 0:00:00]} 4. Nxe4 {[%emt 0:00:00]} Bf5 {[%emt 0:00:00]} 5. Ng3 {[%emt 0:00:19]} Bg6 6. h4 {[%emt 0:00:26]} h6 {[%emt 0:00:00]} 7. Nf3 {[%emt 0:00:31]} e6 {[%emt 0:00:00]} 8. h5 {[%emt 0:00:28]} Bh7 {[%emt 0:00:01]} 9. Bd3 {[%emt 0:00:13]} Bxd3 {[%emt 0:00:04]} 10. Qxd3 {[%emt 0:00:06]} Nf6 {[%emt 0:00:04]} 11. Bd2 {[%emt 0:00:30]} c5 {[%emt 0:00:21]} 12. Ne4 {[%emt 0:01:24]} Nc6 {[%emt 0:04:22]} 13. Bc3 {[%emt 0:10:13]} Nxe4 {[%emt 0:07:07]} 14. Qxe4 {[%emt 0:00:10]} c4 {[%emt 0:00:27]} 15. O-O-O {[%emt 0:33:08]} Qd5 {[%emt 0:00:17]} 16. Rhe1 {[%emt 0:00:10]} Be7 {[%emt 0:09:02]} 17. Ne5 {[%emt 0:06:49]} Rd8 {[%emt 0:11:13]} 18. Qg4 {[%emt 0:04:54]} Bf6 {[%emt 0:06:58]} 19. f4 {[%emt 0:03:33]} O-O {[%emt 0:03:09]} 20. Qg3 {[%emt 0:03:05]} Kh7 {[%emt 0:06:00]} 21. a3 {[%emt 0:10:45]} Ne7 {[%emt 0:10:19]} 22. Qf2 {[%emt 0:12:05]} Nf5 {[%emt 0:00:17]} 23. g3 {[%emt 0:01:32]} Nd6 {[%emt 0:00:11]} 24. Qe2 {[%emt 0:00:58]} a5 {[%emt 0:01:38]} 25. g4 {[%emt 0:01:23]} Nb5 {[%emt 0:05:43]} 26. Bxa5 {[%emt 0:01:22]} Nxd4 {[%emt 0:03:02]} 27. Qe4+ {[%emt 0:00:13]} Qxe4 {[%emt 0:00:01]} 28. Rxe4 {[%emt 0:00:06]} Rd5 {[%emt 0:00:06]} 29. Rdxd4 {[%emt 0:06:17]} Rxa5 {[%emt 0:00:01]} 30. Rxc4 {[%emt 0:01:00]} Rd5 {[%emt 0:02:44]} 31. Rc7 {[%emt 0:00:05]} Rfd8 {[%emt 0:00:40]} 32. b4 {[%emt 0:00:47]} Rd1+ {[%emt 0:02:04]} 33. Kb2 {[%emt 0:00:06]} R8d4 {[%emt 0:00:14]} 34. Rc4 {[%emt 0:03:01]} Rd5 {[%emt 0:00:36]} 35. Kb3 {[%emt 0:00:34]} Rb1+ {[%emt 0:00:26]} 36. Ka2 {[%emt 0:00:54]} Rdd1 {[%emt 0:00:14]} 37. b5 {[%emt 0:00:41]} Rxb5 {[%emt 0:13:11]} 38. Rb4 {[%emt 0:00:00]} Rc5 {[%emt 0:00:31]} 39. c4 {[%emt 0:00:59]} Rc7 {[%emt 0:01:31]} 40. Rb5 {[%emt 0:00:00]} Bxe5 {[%emt 0:00:00]} 41. Rbxe5 {[%emt 0:05:38]} Rd3 {[%emt 0:05:45]} 42. Kb2 {[%emt 0:02:43]} Rcd7 {[%emt 0:09:28]} 43. f5 {[%emt 0:02:40]} exf5 {[%emt 0:03:22]} 44. Rxf5 {[%emt 0:00:12]} Rg3 {[%emt 0:00:37]} 45. Rd5 {[%emt 0:00:29]} Rxd5 {[%emt 0:06:32]} 46. cxd5 {[%emt 0:00:05]} Rd3 {[%emt 0:00:02]} 47. Re7 {[%emt 0:02:58]} Rxd5 {[%emt 0:00:15]} 48. Rxf7 {[%emt 0:00:23]} Rd4 {[%emt 0:00:29]} 49. Rxb7 {[%emt 0:00:06]} Rxg4 {[%emt 0:00:05]} 50. Rb5 {[%emt 0:00:07]} g5 {[%emt 0:00:44]} 51. Rb7+ {[%emt 0:08:58]} Kg8 {[%emt 0:00:11]} 52. Rb8+ {[%emt 0:00:05]} Kg7 {[%emt 0:00:39]} 53. Rb7+ {[%emt 0:00:05]} Kg8 {[%emt 0:00:03]} 54. Rb8+ {[%emt 0:00:03]} Kg7 {[%emt 0:00:03]} 1/2-1/2

[Event "POL-chT 2 Liga 2019"]
[Site "Poronin"]
[Date "2019.09.12"]
[Round "6.20"]
[White "Lukasiewicz, Krzysztof"]
[Black "Lizak, Jakub"]
[Result "1-0"]
[ECO "B43"]
[WhiteElo "2254"]
[BlackElo "2236"]
[Annotator "NA"]
[PlyCount "111"]
[EventDate "2019.09.07"]
[EventType "team-tourn"]
[EventCountry "POL"]
[SourceTitle "playchess.com"]
[Source "ChessBase"]
[SourceQuality "1"]
[TimeControl "40/5400+30:1800+30"]

1. e4 {[%emt 0:00:00]} c5 {[%emt 0:00:00]} 2. Nf3 {[%emt 0:00:00]} e6 {[%emt 0:00:24]} 3. d4 {[%emt 0:00:00]} cxd4 {[%emt 0:00:03]} 4. Nxd4 {[%emt 0:00:05]} a6 {[%emt 0:00:03]} 5. Nc3 {[%emt 0:00:07]} Qc7 {[%emt 0:00:05]} 6. g3 {[%emt 0:00:05]} Nc6 {[%emt 0:00:45]} 7. Bg2 {[%emt 0:00:07]} Nf6 {[%emt 0:01:07]} 8. O-O {[%emt 0:00:21]} Be7 {[%emt 0:00:33]} 9. Re1 {[%emt 0:00:11]} d6 {[%emt 0:03:39]} 10. Nxc6 {[%emt 0:02:26]} bxc6 {[%emt 0:00:07]} 11. e5 {[%emt 0:00:04]} dxe5 {[%emt 0:00:03]} 12. Rxe5 {[%emt 0:00:03]} Bd6 {[%emt 0:03:33]} 13. Bf4 {[%emt 0:06:36]} Ke7 {[%emt 0:03:54]} 14. Rc5 {[%emt 0:08:58]} Bb7 {[%emt 0:00:42]} 15. Bxd6+ {[%emt 0:02:18]} Qxd6 {[%emt 0:00:04]} 16. Qxd6+ {[%emt 0:00:16]} Kxd6 {[%emt 0:00:03]} 17. Na4 {[%emt 0:07:01]} Nd7 {[%emt 0:01:28]} 18. Rc3 {[%emt 0:03:29]} Kc7 {[%emt 0:03:42]} 19. Kf1 {[%emt 0:08:01]} Rhd8 {[%emt 0:03:08]} 20. Ke1 {[%emt 0:01:09]} e5 {[%emt 0:04:39]} 21. g4 {[%emt 0:07:03]} Nf6 {[%emt 0:04:40]} 22. g5 {[%emt 0:10:09]} Nd5 {[%emt 0:00:33]} 23. Rc4 {[%emt 0:00:35]} Nf4 {[%emt 0:01:16]} 24. Be4 {[%emt 0:01:17]} Ne6 {[%emt 0:04:34]} 25. Nc5 {[%emt 0:04:10]} Nxc5 {[%emt 0:02:50]} 26. Rxc5 {[%emt 0:01:53]} h6 {[%emt 0:04:38]} 27. gxh6 {[%emt 0:02:53]} gxh6 {[%emt 0:00:20]} 28. Ke2 {[%emt 0:01:42]} f6 {[%emt 0:00:11]} 29. Rg1 {[%emt 0:02:02]} Rg8 {[%emt 0:00:05]} 30. Rg3 {[%emt 0:00:14]} Raf8 {[%emt 0:01:24]} 31. Rgc3 {[%emt 0:04:24]} Rg4 {[%emt 0:02:00]} 32. Bxc6 {[%emt 0:00:46]} Rh4 {[%emt 0:00:39]} 33. Bd5+ {[%emt 0:01:34]} Kb6 {[%emt 0:01:21]} 34. Bxb7 {[%emt 0:00:27]} Kxb7 {[%emt 0:00:04]} 35. Rb3+ {[%emt 0:02:36]} Ka7 {[%emt 0:00:15]} 36. Rc7+ {[%emt 0:00:54]} Ka8 {[%emt 0:00:03]} 37. Rc6 {[%emt 0:02:53]} Ka7 {[%emt 0:00:41]} 38. Ra3 {[%emt 0:02:29]} Rxh2 {[%emt 0:00:37]} 39. Raxa6+ {[%emt 0:00:16]} Kb7 {[%emt 0:00:04]} 40. Rcb6+ {[%emt 0:00:00]} Kc7 {[%emt 0:00:00]} 41. Rxf6 {[%emt 0:00:58]} Rxf6 {[%emt 0:00:12]} 42. Rxf6 {[%emt 0:00:07]} h5 {[%emt 0:00:14]} 43. Re6 {[%emt 0:03:42]} h4 {[%emt 0:00:06]} 44. Rxe5 {[%emt 0:00:08]} h3 {[%emt 0:00:02]} 45. Rh5 {[%emt 0:02:06]} Rh1 {[%emt 0:00:04]} 46. b3 {[%emt 0:03:40]} h2 {[%emt 0:00:07]} 47. c4 {[%emt 0:00:12]} Kc6 {[%emt 0:00:16]} 48. Kf3 {[%emt 0:00:35]} Ra1 {[%emt 0:00:17]} 49. Rxh2 {[%emt 0:00:05]} Rxa2 {[%emt 0:00:02]} 50. Rh5 {[%emt 0:00:30]} Rc2 {[%emt 0:00:04]} 51. Rb5 {[%emt 0:00:07]} Kc7 {[%emt 0:00:10]} 52. Ke3 {[%emt 0:00:08]} Rc3+ {[%emt 0:00:05]} 53. Ke4 {[%emt 0:00:16]} Rc2 54. f4 {[%emt 0:00:09]} Re2+ {[%emt 0:00:09]} 55. Kf5 {[%emt 0:01:48]} Re1 {[%emt 0:00:05]} 56. Kf6 {[%emt 0:01:36]} 1-0

[Event "POL-chT 2 Liga 2019"]
[Site "Poronin"]
[Date "2019.09.12"]
[Round "6.21"]
[White "Duda, Lukasz"]
[Black "Jankowiak, Tomasz"]
[Result "0-1"]
[ECO "D02"]
[WhiteElo "2209"]
[BlackElo "2075"]
[Annotator "NA"]
[PlyCount "66"]
[EventDate "2019.09.07"]
[EventType "team-tourn"]
[EventCountry "POL"]
[SourceTitle "playchess.com"]
[Source "ChessBase"]
[SourceQuality "1"]
[TimeControl "40/5400+30:1800+30"]

1. d4 {[%emt 0:00:00]} d5 {[%emt 0:00:00]} 2. Nf3 {[%emt 0:00:00]} Nf6 {[%emt 0:00:00]} 3. Bf4 {[%emt 0:00:00]} c5 {[%emt 0:00:16]} 4. e3 {[%emt 0:00:00]} Nc6 {[%emt 0:00:21]} 5. Nbd2 {[%emt 0:00:16]} Qb6 {[%emt 0:03:09]} 6. dxc5 {[%emt 0:00:21]} Qxb2 {[%emt 0:14:35]} 7. Rb1 {[%emt 0:00:13]} Qc3 {[%emt 0:00:40]} 8. Bb5 {[%emt 0:00:08]} e6 {[%emt 0:19:58]} 9. Nd4 {[%emt 0:26:10]} Bd7 {[%emt 0:01:06]} 10. O-O {[%emt 0:11:09]} Qxc5 {[%emt 0:19:06]} 11. c4 {[%emt 0:12:46]} Be7 {[%emt 0:06:14]} 12. cxd5 {[%emt 0:20:25]} Nxd5 {[%emt 0:07:34]} 13. Ne4 {[%emt 0:01:20]} Qa3 {[%emt 0:01:28]} 14. Rb3 {[%emt 0:04:05]} Qxa2 {[%emt 0:02:47]} 15. Nd6+ {[%emt 0:01:53]} Bxd6 {[%emt 0:09:14]} 16. Bxd6 {[%emt 0:00:07]} Nxd4 {[%emt 0:00:03]} 17. exd4 {[%emt 0:06:38]} Bxb5 {[%emt 0:01:12]} 18. Rxb5 {[%emt 0:00:01]} Nc3 {[%emt 0:00:28]} 19. Qh5 {[%emt 0:05:19]} Qa6 {[%emt 0:01:55]} 20. Qg5 {[%emt 0:08:36]} Qxd6 {[%emt 0:01:49]} 21. Qxg7 {[%emt 0:00:04]} Qf8 {[%emt 0:02:38]} 22. Qe5 {[%emt 0:00:13]} Nxb5 {[%emt 0:00:34]} 23. Qxb5+ {[%emt 0:00:06]} Kd8 {[%emt 0:01:24]} 24. d5 {[%emt 0:01:15]} Qd6 {[%emt 0:02:55]} 25. dxe6 {[%emt 0:00:05]} fxe6 {[%emt 0:00:14]} 26. Rc1 {[%emt 0:01:09]} Qd5 {[%emt 0:01:12]} 27. Qb1 {[%emt 0:00:38]} Ke7 {[%emt 0:00:55]} 28. Rd1 Qf5 {[%emt 0:01:03]} 29. Qxb7+ {[%emt 0:00:51]} Kf6 {[%emt 0:00:07]} 30. Rd7 {[%emt 0:00:04]} Rab8 {[%emt 0:01:04]} 31. Rf7+ {[%emt 0:00:57]} Kg6 {[%emt 0:00:05]} 32. Rg7+ {[%emt 0:00:33]} Kh6 {[%emt 0:00:12]} 33. Rxh7+ {[%emt 0:00:30]} Qxh7 {[%emt 0:00:12]} 0-1